{"text_format":"3","workbook":"xlsx","n_sheets":1,"sheets":["采购要求及招标控制价"],"not_rendered":{"defined_names":1},"read":"whole","date_system":"1900"}

{"sheet":"采购要求及招标控制价","index":0,"n_rows":23,"n_cols":7,"rows_kept":23,"merged":[[0,0,0,6],[19,0,19,5],[20,0,20,5],[21,0,21,5],[22,0,22,6]]}
["永州城发集团智慧停车场第二批监控设备                                采购和建设项目采购要求及招标控制价"]
["序号","设备名称","参数和功能","数量","单位","综合单价（元）","总价上限（元）"]
[1,"枪型网络摄像机","知名国产品牌，传感器类型：不低于1/3英寸CMOS；★像素：不低于400万；分辨率不低于：2500×1400；最低照度：0.002Lux（彩色模式）、0.0002Lux（黑白模式）、0Lux（补光灯开启）；内置高效红外灯及暖光灯，补光距离不低于：80m（红外）、30m（暖光）；镜头类型：定焦；镜头焦距：2.8-8mm可选；视频压缩标准：支持H.265，H.264；MJPEG（辅码流支持）；智能编码：支持H.264，H.265；宽动态：不低于120dB；接入标准：支持GB/T28181；内置MIC，内置扬声器，具备对讲功能；最大Micro SD卡：128 GB；防护等级≥IP66",120,"个",680,{"$f":"D3*F3","v":81600}]
[2,"安装支架","定制，安装方式壁装/立杆安装可选",120,"根",22.5,{"$f":"D4*F4","v":2700}]
[3,"电源适配器","DC12V2A电源适配器",120,"个",38,4560]
[4,"借杆借墙横臂","定制，壁厚≧2mm，杆长1.2m-1.5m,杆端不低于2个监控底座，带不锈钢抱箍，包括横臂安装，脚手架租赁、运输、拆卸，升降车台班，杆内放线",25,"套",847,21175]
[5,"基础杆件","安装高度4米，全钢立杆、镀锌热喷塑、横臂约1500mm、厚度≥2.5mm，立杆整体平滑无毛刺，定制抱杆箱固定位（含引线管），带避雷针，含施工所需各项安全文明措施，保障安装位置科学合理，保证监控视界完整、完好。按招标人需要，据实安装、结算",30,"套",970,29100]
[6,"抱杆防水监控网络弱电设备箱","机箱应具有防水、防酸、防尘、防盗、防拆装置，防护等级满足IP55防护等级；箱体外尺寸：≥300mm*400mm*180mm，优质冷轧碳钢板、喷室外专用防腐氟碳漆，主体材质厚度≥1mm，抱箍及连接件厚度≥1.5mm；含空气开关等各项配套、材料。按招标人需要，据实安装、结算",30,"套",285,8550]
[7,"设备系统安装","包括但不限于破路、开槽/路面墙面恢复、设备安装、网络/电源布线敷设等。按招标人需要，据实安装、结算",30,"套",720,21600]
[8,"电缆线","国标，室外RVV2*≥2.5，铜芯电缆线，本项工程量按150米每场*15场暂估，按实结算。含场内外电力接入施工：开槽、破路、线路敷设、安全文明施工、混凝土回填、路面墙面恢复和业务协调等各项有关工作、材料，工程量同上（暂估）",2250,"米",6.83,15367.5]
[9,"光纤","包括但不限于：6芯线材，尾纤，熔纤，尾纤，熔纤盘，光纤收发器和安装、调试等各项工作和费用。工程量暂估，按实结算",500,"米",3,1500]
[10,"网线","国标305米/箱，≥超五类室外阻水阻燃网线，8芯，≥0.5mm无氧铜，双层护套，工程量暂按150米每场预计，最终按实结算",9,"卷",555,4995]
[11,"PVC管","规格：≥PVC2.0，3.8米/根；/规范埋地、敷设，工程量按按实结算",552,"根",4,2208]
[12,"交换机","千兆，5个数据端口交换机。（每个停车场暂估2个，最终按实际情况确定，并结算）",30,"台",158,4740]
[13,"辅材、安装、调试、培训","包含设备系统安装、综合布线、软件调试、培训，包括但不限于扎带、胶布、转接头、水晶头、光纤熔纤、波纹管，以及提供给招标方一批次人员接受厂家培训合格等",120,"套",65,7800]
[14,"网络视频存储服务器（不含硬盘)","设备参数\n1、标配主备双控制盒，硬件冗余备份，自动故障切换，无录像丢失；\n2、每个控制盒标配1颗高性能多核CPU、≥16G内存、≥1个千兆管理电口、4个千兆数据电口，可选配扩展支持电口或光口；\n3、支持双活模式，备控制盒协助主板进行码流转发业务；\n4、最大支持512路（1024 Mbps）前端接入、存储、转发，32路（64 Mbps）网络回放；\n5、接入支持ONVIF、GB28181、主动注册等协议接入，保障了对不同厂家前端设备的兼容性；\n6、存储RAID支持JBOD、RAID 0/1/5/6/10/50/60、SRAID ，支持全局热备和局部热备；\n7、支持视频流直存，减少流媒体服务器的成本；\n8、支持通用存储协议：ISCSI/SAMBA/NFS/FTP；\n9、针对关键重要的视频，提供对实时流和历史视频进行加锁，确保不被循环覆盖；\n10、支持图片直存，可配合智能前端设备使用，支持人脸检测、人脸识别、视频结构化、人群分布图、打电话报警、吸烟报警 、通用行为分析、机动车检索、非机动车检索；\n11、支持硬盘检测，硬盘健康监测、SSD寿命告警；\n12、双控形态可以支持SATA、SAS硬盘。\n硬盘参数\n单盘容量：16TB；\n硬盘接口：SATA；\n转速：7200RPM；\n缓存：256MB",1,"台",31000,31000]
[15,"视频通道路数授权","1、视频子系统最大支持10万路视频通道接入；\n2、视频级联管理支持管理5个上级、99个下级；\n3、实时视频最大支持64画面分割，录像回放支持36路画面；\n4、最大电视墙上墙路数200路；\n5、最大同时录像下载任务个数5个；",120,"路",30,3600]
[16,"16TB硬盘","16TB 256MB 7200RPM 企业级硬盘SATA接口 ",10,"块",2050,20500]
[17,"安装及调试\n服务","包括设备系统安装、综合布线、软件调试、培训（同13重复）",1,"套",1000,1000]
["小  计",{"$nulls":5},{"$f":"SUM(G3:G19)","v":261995.5}]
["（暂列金）不可预见费10%",{"$nulls":5},{"$f":"G20*0.1","v":{"v":26199.55,"d":"26200"}}]
["合  计",{"$nulls":5},{"$f":"SUM(G20:G21)","v":{"v":288195.05,"d":"288195"}}]
["注：本项目为交钥匙工程。综合单价为含税大包干的全费用价格。即中标人负责将符合招标与合同要求的监控系统与设备完成设计、建设、链接入和安装调试好后，交付招标人正常运营使用；保证交付给招标人的监控设备与系统顺畅运行、使用与存储（含延时），负责链接入中心城区泊车大数据平台并接入招标人首批监控系统（费用均已含在本项目内）。\n    若本项目所需相关设备超出上述清单，均视同已包含，由中标人负责建设、安装好，招标人不再额外付费。本项目费用包含但不限于设备与系统购置费、安装调试费、施工费、安全文明费、辅材费，场内外150米以内的强弱电接入费、人工费、人身和财产保险费等全部各项税费。本项目按招标人需要分批实施，最终按招标人需要的实际建成数审核计量、结算（不超过中标金额的前提下）。投标总报价及各分项报价均不能超过招标人发布的控制价，否则视为废标。"]